[Event "*** Titled Tuesday Blitz"]
[Site "Chess.com"]
[Date "2020.12.01"]
[Round "1"]
[White "ShahMatKanal"]
[Black "PetrolulSah"]
[Result "0-1"]
[WhiteElo "2518"]
[BlackElo "2207"]
[TimeControl "180+1"]
[EndTime "10:06:54 PST"]
[Termination "PetrolulSah won by resignation"]

1. d4 {[%clk 0:03:00.9]} 1... Nf6 {[%clk 0:02:59.2]} 2. c4 {[%clk 0:03:01.1]}
2... g6 {[%clk 0:02:59.2]} 3. Nc3 {[%clk 0:03:01.4]} 3... d5 {[%clk 0:02:59.6]}
4. Nf3 {[%clk 0:02:58.3]} 4... Bg7 {[%clk 0:02:59.6]} 5. Bg5 {[%clk 0:02:58.8]}
5... Ne4 {[%clk 0:02:58.2]} 6. cxd5 {[%clk 0:02:59.3]} 6... Nxg5 {[%clk
0:02:58]} 7. Nxg5 {[%clk 0:03:00.2]} 7... e6 {[%clk 0:02:58.1]} 8. Nf3 {[%clk
0:03:00.8]} 8... exd5 {[%clk 0:02:58.2]} 9. e3 {[%clk 0:03:01.7]} 9... O-O
{[%clk 0:02:58.1]} 10. Bd3 {[%clk 0:03:02]} 10... c6 {[%clk 0:02:57.4]} 11. O-O
{[%clk 0:03:02.3]} 11... Nd7 {[%clk 0:02:56.8]} 12. b4 {[%clk 0:02:57.7]} 12...
Re8 {[%clk 0:02:56.5]} 13. b5 {[%clk 0:02:51.3]} 13... Nf6 {[%clk 0:02:56.5]}
14. bxc6 {[%clk 0:02:51.1]} 14... bxc6 {[%clk 0:02:56.7]} 15. Ne5 {[%clk
0:02:40.2]} 15... Bd7 {[%clk 0:02:49.5]} 16. Qc2 {[%clk 0:02:16.8]} 16... Ne4
{[%clk 0:02:36]} 17. Bxe4 {[%clk 0:01:37.5]} 17... dxe4 {[%clk 0:02:29.7]} 18.
Nxd7 {[%clk 0:01:17.6]} 18... Qxd7 {[%clk 0:02:29.6]} 19. Nxe4 {[%clk
0:01:17.6]} 19... Qf5 {[%clk 0:02:21.6]} 20. f3 {[%clk 0:01:17.3]} 20... c5
{[%clk 0:02:15.7]} 21. g4 {[%clk 0:00:30.3]} 21... Qd5 {[%clk 0:02:10.2]} 22.
dxc5 {[%clk 0:00:12.5]} 22... Bxa1 {[%clk 0:02:06.8]} 23. Rxa1 {[%clk
0:00:13.4]} 23... Qe5 {[%clk 0:01:45.8]} 24. Re1 {[%clk 0:00:13.4]} 24... Rac8
{[%clk 0:01:42.4]} 25. Qb3 {[%clk 0:00:08.3]} 25... Rb8 {[%clk 0:01:24]} 26. Qc4
{[%clk 0:00:04.1]} 26... Rb2 {[%clk 0:01:22.1]} 27. Re2 {[%clk 0:00:04.3]} 27...
Rxe2 {[%clk 0:01:15.9]} 28. Qxe2 {[%clk 0:00:05.2]} 28... Rb8 {[%clk 0:01:13.3]}
29. Nf2 {[%clk 0:00:02.2]} 29... Rb1+ {[%clk 0:01:11.6]} 30. Kg2 {[%clk
0:00:02.3]} 30... Rb2 {[%clk 0:01:11.6]} 31. Qd1 {[%clk 0:00:01]} 31... Qxe3
{[%clk 0:01:01.1]} 32. Qd8+ {[%clk 0:00:01.2]} 32... Kg7 {[%clk 0:01:00.9]} 33.
Qh4 {[%clk 0:00:02.1]} 33... g5 {[%clk 0:00:53.5]} 34. Qg3 {[%clk 0:00:01.6]}
34... Qxc5 {[%clk 0:00:50.5]} 35. h4 {[%clk 0:00:01.8]} 35... h6 {[%clk
0:00:50]} 36. h5 {[%clk 0:00:02]} 36... Rxa2 {[%clk 0:00:49.4]} 0-1

[Event "*** Titled Tuesday Blitz"]
[Site "Chess.com"]
[Date "2020.12.01"]
[Round "1"]
[White "ondoko"]
[Black "Atousa1"]
[Result "0-1"]
[WhiteElo "2104"]
[BlackElo "2488"]
[TimeControl "180+1"]
[EndTime "10:06:55 PST"]
[Termination "Atousa1 won by resignation"]

1. e4 {[%clk 0:02:44.7]} 1... c5 {[%clk 0:02:56.2]} 2. Nf3 {[%clk 0:02:44.7]}
2... e6 {[%clk 0:02:34.7]} 3. d4 {[%clk 0:02:43.6]} 3... cxd4 {[%clk 0:02:32]}
4. Nxd4 {[%clk 0:02:44.5]} 4... a6 {[%clk 0:02:32.2]} 5. Bd3 {[%clk 0:02:43.5]}
5... Qc7 {[%clk 0:02:30]} 6. O-O {[%clk 0:02:41.8]} 6... Nf6 {[%clk 0:02:28.2]}
7. Qe2 {[%clk 0:02:40.9]} 7... Bc5 {[%clk 0:02:26.1]} 8. Nb3 {[%clk 0:02:38.1]}
8... Be7 {[%clk 0:02:18.7]} 9. Nc3 {[%clk 0:02:31.4]} 9... d6 {[%clk 0:02:18.7]}
10. a4 {[%clk 0:02:25.7]} 10... b6 {[%clk 0:02:17]} 11. f4 {[%clk 0:02:08.2]}
11... Nbd7 {[%clk 0:02:14.3]} 12. Bd2 {[%clk 0:02:07.6]} 12... Bb7 {[%clk
0:02:14.1]} 13. Rae1 {[%clk 0:02:06.5]} 13... O-O {[%clk 0:02:13.9]} 14. e5
{[%clk 0:01:48.1]} 14... Nd5 {[%clk 0:02:11.2]} 15. Kh1 {[%clk 0:01:07.4]} 15...
g6 {[%clk 0:02:00.3]} 16. Nxd5 {[%clk 0:00:55.5]} 16... Bxd5 {[%clk 0:01:58.9]}
17. exd6 {[%clk 0:00:48.8]} 17... Bxd6 {[%clk 0:01:55.3]} 18. Bc3 {[%clk
0:00:42.7]} 18... Bxf4 {[%clk 0:01:47.4]} 19. Qg4 {[%clk 0:00:38.6]} 19... Bh6
{[%clk 0:01:33]} 20. Qh4 {[%clk 0:00:33.9]} 20... Bg7 {[%clk 0:01:29.3]} 21.
Bxg7 {[%clk 0:00:32.3]} 21... Kxg7 {[%clk 0:01:30.2]} 22. Nd4 {[%clk 0:00:32.3]}
22... Qd8 {[%clk 0:01:18.7]} 23. Qg3 {[%clk 0:00:29.5]} 23... Rc8 {[%clk
0:01:16.2]} 24. b3 {[%clk 0:00:28.4]} 24... h6 {[%clk 0:01:13.4]} 25. c4 {[%clk
0:00:28]} 25... Bb7 {[%clk 0:01:11.9]} 26. Rxe6 {[%clk 0:00:26.2]} 26... Qg5
{[%clk 0:01:06.4]} 27. Qxg5 {[%clk 0:00:21]} 27... hxg5 {[%clk 0:01:06.5]} 28.
Re7 {[%clk 0:00:21.2]} 28... Nc5 {[%clk 0:01:02.4]} 29. Bc2 {[%clk 0:00:21.1]}
29... Rcd8 {[%clk 0:00:57.8]} 30. Nf3 {[%clk 0:00:15.2]} 30... Rfe8 {[%clk
0:00:39.5]} 31. Rxe8 {[%clk 0:00:12.5]} 31... Rxe8 {[%clk 0:00:40.4]} 32. b4
{[%clk 0:00:12.9]} 32... Ne4 {[%clk 0:00:38.8]} 33. Bxe4 {[%clk 0:00:12]} 33...
Rxe4 {[%clk 0:00:36.4]} 34. Rc1 {[%clk 0:00:11.9]} 34... g4 {[%clk 0:00:30.8]}
35. Nd2 {[%clk 0:00:08.3]} 35... Re2 {[%clk 0:00:31.2]} 0-1

[Event "*** Titled Tuesday Blitz"]
[Site "Chess.com"]
[Date "2020.12.01"]
[Round "1"]
[White "ChelsieMonica"]
[Black "Matibar"]
[Result "0-1"]
[WhiteElo "2376"]
[BlackElo "2735"]
[TimeControl "180+1"]
[EndTime "10:06:56 PST"]
[Termination "Matibar won by resignation"]

1. c4 {[%clk 0:03:00.9]} 1... g6 {[%clk 0:02:55.7]} 2. Nf3 {[%clk 0:03:01.3]}
2... Bg7 {[%clk 0:02:55.9]} 3. g3 {[%clk 0:03:02]} 3... b6 {[%clk 0:02:51.5]} 4.
Bg2 {[%clk 0:03:01.9]} 4... Bb7 {[%clk 0:02:52.4]} 5. O-O {[%clk 0:03:02.2]}
5... e6 {[%clk 0:02:51.9]} 6. Nc3 {[%clk 0:03:02.5]} 6... Nf6 {[%clk 0:02:49.6]}
7. b3 {[%clk 0:03:01.6]} 7... O-O {[%clk 0:02:49.5]} 8. Bb2 {[%clk 0:03:00.1]}
8... d5 {[%clk 0:02:49.4]} 9. cxd5 {[%clk 0:02:59.8]} 9... exd5 {[%clk
0:02:49.2]} 10. Rc1 {[%clk 0:02:53.5]} 10... d4 {[%clk 0:02:39.9]} 11. Nb5
{[%clk 0:02:51.7]} 11... c5 {[%clk 0:02:39.6]} 12. d3 {[%clk 0:02:47.5]} 12...
Re8 {[%clk 0:02:27.7]} 13. Na3 {[%clk 0:02:45.9]} 13... Nc6 {[%clk 0:02:24.7]}
14. Nc4 {[%clk 0:02:45]} 14... Rc8 {[%clk 0:02:15.4]} 15. Re1 {[%clk 0:02:40.8]}
15... Rc7 {[%clk 0:02:15.3]} 16. Na3 {[%clk 0:02:31.2]} 16... Nb4 {[%clk
0:02:13.2]} 17. Nb5 {[%clk 0:02:24.2]} 17... Rce7 {[%clk 0:02:13]} 18. a3 {[%clk
0:01:49]} 18... Nc6 {[%clk 0:02:12.7]} 19. a4 {[%clk 0:01:48.6]} 19... Nd5
{[%clk 0:01:59.9]} 20. Na3 {[%clk 0:01:24.6]} 20... Nc3 {[%clk 0:01:53.4]} 21.
Bxc3 {[%clk 0:01:20.7]} 21... dxc3 {[%clk 0:01:54.3]} 22. Nc2 {[%clk 0:01:17.8]}
22... Nb4 {[%clk 0:01:23.6]} 23. Nxb4 {[%clk 0:01:03.3]} 23... cxb4 {[%clk
0:01:23.6]} 24. Qc2 {[%clk 0:01:02]} 24... Rd7 {[%clk 0:01:11.1]} 25. Red1
{[%clk 0:00:56.1]} 25... Ba6 {[%clk 0:01:06.6]} 26. Bf1 {[%clk 0:00:55.1]} 26...
Qf6 {[%clk 0:01:04.2]} 27. Ne1 {[%clk 0:00:51.9]} 27... h5 {[%clk 0:00:59.7]}
28. Ng2 {[%clk 0:00:48.7]} 28... Bb7 {[%clk 0:00:58]} 29. h4 {[%clk 0:00:36.8]}
29... g5 {[%clk 0:00:56.9]} 30. hxg5 {[%clk 0:00:36.4]} 30... Qxg5 {[%clk
0:00:57.8]} 31. e3 {[%clk 0:00:34.2]} 31... Re6 {[%clk 0:00:53.2]} 32. d4 {[%clk
0:00:33.5]} 32... h4 {[%clk 0:00:47.8]} 33. Nf4 {[%clk 0:00:20.3]} 33... hxg3
{[%clk 0:00:44.7]} 34. Nxe6 {[%clk 0:00:20.3]} 34... gxf2+ {[%clk 0:00:45.3]}
35. Kxf2 {[%clk 0:00:21.2]} 35... fxe6 {[%clk 0:00:45.5]} 36. e4 {[%clk
0:00:20.4]} 36... Qf4+ {[%clk 0:00:44.7]} 37. Ke1 {[%clk 0:00:19.9]} 37... Bxe4
{[%clk 0:00:45.1]} 38. Bd3 {[%clk 0:00:19.9]} 38... Rxd4 {[%clk 0:00:39.6]} 39.
Bxe4 {[%clk 0:00:19.8]} 39... Rxe4+ {[%clk 0:00:40]} 40. Qe2 {[%clk 0:00:20.2]}
40... Qh4+ {[%clk 0:00:37.1]} 41. Kf1 {[%clk 0:00:20.1]} 41... Qh1+ {[%clk
0:00:37.2]} 42. Kf2 {[%clk 0:00:20.4]} 42... Qh2+ {[%clk 0:00:37.6]} 0-1

[Event "*** Titled Tuesday Blitz"]
[Site "Chess.com"]
[Date "2020.12.01"]
[Round "1"]
[White "YIYUKI"]
[Black "Vesper2018"]
[Result "0-1"]
[WhiteElo "2331"]
[BlackElo "2667"]
[TimeControl "180+1"]
[EndTime "10:06:56 PST"]
[Termination "Vesper2018 won by checkmate"]

1. e4 {[%clk 0:03:00.6]} 1... c5 {[%clk 0:02:59.5]} 2. Nf3 {[%clk 0:03:00]} 2...
d6 {[%clk 0:02:59.5]} 3. Bb5+ {[%clk 0:02:54.9]} 3... Bd7 {[%clk 0:02:56.3]} 4.
Bxd7+ {[%clk 0:02:53.8]} 4... Qxd7 {[%clk 0:02:56.1]} 5. O-O {[%clk 0:02:50.8]}
5... Nf6 {[%clk 0:02:55.5]} 6. Re1 {[%clk 0:02:50.6]} 6... Nc6 {[%clk
0:02:54.9]} 7. c3 {[%clk 0:02:50.6]} 7... g6 {[%clk 0:02:54.7]} 8. d4 {[%clk
0:02:50.1]} 8... Bg7 {[%clk 0:02:43.7]} 9. Bg5 {[%clk 0:02:47]} 9... O-O-O
{[%clk 0:02:36.9]} 10. Nbd2 {[%clk 0:02:39.4]} 10... h6 {[%clk 0:02:31]} 11. Bh4
{[%clk 0:02:35]} 11... g5 {[%clk 0:02:30]} 12. Bg3 {[%clk 0:02:35.2]} 12... Nh5
{[%clk 0:02:29.4]} 13. d5 {[%clk 0:02:29.3]} 13... Nb8 {[%clk 0:02:13.3]} 14. a4
{[%clk 0:02:08.8]} 14... Nf4 {[%clk 0:02:06.8]} 15. Nc4 {[%clk 0:02:05.3]} 15...
e6 {[%clk 0:02:05]} 16. Qd2 {[%clk 0:01:56.4]} 16... e5 {[%clk 0:01:55.5]} 17.
a5 {[%clk 0:01:49.8]} 17... Na6 {[%clk 0:01:51.3]} 18. b4 {[%clk 0:01:47.3]}
18... cxb4 {[%clk 0:01:49.3]} 19. cxb4 {[%clk 0:01:47]} 19... Kb8 {[%clk
0:01:49.8]} 20. Rac1 {[%clk 0:01:37.6]} 20... Rc8 {[%clk 0:01:49]} 21. Ne3
{[%clk 0:01:30.4]} 21... Bf6 {[%clk 0:01:39.4]} 22. Nf5 {[%clk 0:01:25.7]} 22...
h5 {[%clk 0:01:28.2]} 23. Bxf4 {[%clk 0:01:06.8]} 23... exf4 {[%clk 0:01:26.6]}
24. N3d4 {[%clk 0:01:06.2]} 24... Be5 {[%clk 0:00:58.1]} 25. b5 {[%clk
0:01:06.1]} 25... Nc5 {[%clk 0:00:57.1]} 26. a6 {[%clk 0:01:06.1]} 26... Ka8
{[%clk 0:00:52.5]} 27. axb7+ {[%clk 0:00:59.1]} 27... Qxb7 {[%clk 0:00:51.6]}
28. Nc6 {[%clk 0:00:52.7]} 28... Nb3 {[%clk 0:00:49]} 29. Qb4 {[%clk 0:00:46.1]}
29... Nxc1 {[%clk 0:00:48.8]} 30. Rxc1 {[%clk 0:00:46.8]} 30... Rc7 {[%clk
0:00:47]} 31. Rc2 {[%clk 0:00:42.5]} 31... Qb6 {[%clk 0:00:43.2]} 32. Ra2 {[%clk
0:00:42]} 32... Rb8 {[%clk 0:00:32.9]} 33. Qa4 {[%clk 0:00:32.3]} 33... Rbb7
{[%clk 0:00:30.8]} 34. h4 {[%clk 0:00:27.5]} 34... g4 {[%clk 0:00:30.2]} 35.
Nxe5 {[%clk 0:00:20.2]} 35... dxe5 {[%clk 0:00:30.1]} 36. d6 {[%clk 0:00:20.7]}
36... Rc1+ {[%clk 0:00:28.5]} 37. Kh2 {[%clk 0:00:20.2]} 37... g3+ {[%clk
0:00:28.8]} 38. fxg3 {[%clk 0:00:20.1]} 38... Qg1+ {[%clk 0:00:27.4]} 39. Kh3
{[%clk 0:00:19.5]} 39... Qh1# {[%clk 0:00:27.5]} 0-1

[Event "*** Titled Tuesday Blitz"]
[Site "Chess.com"]
[Date "2020.12.01"]
[Round "1"]
[White "joejan"]
[Black "Mikhail_Golubev"]
[Result "0-1"]
[WhiteElo "2257"]
[BlackElo "2565"]
[TimeControl "180+1"]
[EndTime "10:06:56 PST"]
[Termination "Mikhail_Golubev won on time"]

1. e4 {[%clk 0:02:59]} 1... c5 {[%clk 0:02:59.9]} 2. Nc3 {[%clk 0:02:59.5]} 2...
g6 {[%clk 0:02:56.1]} 3. f4 {[%clk 0:03:00.4]} 3... Bg7 {[%clk 0:02:56]} 4. Nf3
{[%clk 0:03:00.9]} 4... e6 {[%clk 0:02:51.4]} 5. Bc4 {[%clk 0:03:01.3]} 5... Ne7
{[%clk 0:02:50.9]} 6. d3 {[%clk 0:03:00.8]} 6... O-O {[%clk 0:02:46.2]} 7. O-O
{[%clk 0:03:00.6]} 7... d5 {[%clk 0:02:43.3]} 8. Bb3 {[%clk 0:03:00.7]} 8...
Nbc6 {[%clk 0:02:40.6]} 9. Qe1 {[%clk 0:02:59.7]} 9... Nd4 {[%clk 0:02:35]} 10.
Qh4 {[%clk 0:02:54.9]} 10... c4 {[%clk 0:02:28.6]} 11. dxc4 {[%clk 0:02:53.5]}
11... dxc4 {[%clk 0:02:27.8]} 12. Bxc4 {[%clk 0:02:10.9]} 12... Nxc2 {[%clk
0:02:19]} 13. f5 {[%clk 0:01:54.6]} 13... Nxf5 {[%clk 0:01:49.8]} 14. Qxd8
{[%clk 0:01:52.2]} 14... Rxd8 {[%clk 0:01:43.3]} 15. exf5 {[%clk 0:01:52.1]}
15... Nxa1 {[%clk 0:01:40.6]} 16. Bg5 {[%clk 0:01:50.6]} 16... f6 {[%clk
0:01:34.8]} 17. fxe6 {[%clk 0:01:50.6]} 17... Re8 {[%clk 0:01:25.2]} 18. Rxa1
{[%clk 0:01:45.2]} 18... fxg5 {[%clk 0:01:24.5]} 19. Nxg5 {[%clk 0:01:39.8]}
19... Bf6 {[%clk 0:01:14.2]} 20. Nce4 {[%clk 0:01:32]} 20... Bxg5 {[%clk
0:01:07.8]} 21. Nxg5 {[%clk 0:01:31.1]} 21... h6 {[%clk 0:01:05.7]} 22. e7+
{[%clk 0:01:10.5]} 22... Kg7 {[%clk 0:01:01.1]} 23. Rf1 {[%clk 0:01:10.6]} 23...
Rxe7 {[%clk 0:00:55.7]} 24. Nf3 {[%clk 0:00:54.3]} 24... Be6 {[%clk 0:00:54.9]}
25. Re1 {[%clk 0:00:52.2]} 25... Rae8 {[%clk 0:00:53.6]} 26. Bxe6 {[%clk
0:00:47]} 26... Rxe6 {[%clk 0:00:53.3]} 27. Rc1 {[%clk 0:00:46.7]} 27... Re2
{[%clk 0:00:51.8]} 28. Rb1 {[%clk 0:00:28.7]} 28... Rd8 {[%clk 0:00:46.6]} 29.
Kf1 {[%clk 0:00:26.7]} 29... Rc2 {[%clk 0:00:46]} 30. a4 {[%clk 0:00:24.7]}
30... Rdc8 {[%clk 0:00:43.4]} 31. Nd4 {[%clk 0:00:14.1]} 31... Rc1+ {[%clk
0:00:43.6]} 32. Rxc1 {[%clk 0:00:14.4]} 32... Rxc1+ {[%clk 0:00:43.7]} 33. Ke2
{[%clk 0:00:15]} 33... Rc4 {[%clk 0:00:42.9]} 34. Ne6+ {[%clk 0:00:11]} 34...
Kf6 {[%clk 0:00:41.7]} 35. Nd8 {[%clk 0:00:05.7]} 35... Rb4 {[%clk 0:00:34.4]}
0-1

[Event "*** Titled Tuesday Blitz"]
[Site "Chess.com"]
[Date "2020.12.01"]
[Round "1"]
[White "bazar-wokzal"]
[Black "esrosenberg"]
[Result "1-0"]
[WhiteElo "2544"]
[BlackElo "2215"]
[TimeControl "180+1"]
[EndTime "10:06:56 PST"]
[Termination "bazar-wokzal won by checkmate"]

1. e4 {[%clk 0:02:56.7]} 1... c6 {[%clk 0:03:00.1]} 2. d4 {[%clk 0:02:56.3]}
2... d5 {[%clk 0:03:00.3]} 3. e5 {[%clk 0:02:56.4]} 3... c5 {[%clk 0:03:00.4]}
4. dxc5 {[%clk 0:02:54.3]} 4... e6 {[%clk 0:03:00.7]} 5. Be3 {[%clk 0:02:52.1]}
5... Nh6 {[%clk 0:02:56]} 6. Nf3 {[%clk 0:02:50.7]} 6... Nf5 {[%clk 0:02:53.9]}
7. Bd4 {[%clk 0:02:50.9]} 7... Nd7 {[%clk 0:02:46.3]} 8. Bb5 {[%clk 0:02:49.6]}
8... Qa5+ {[%clk 0:02:23.2]} 9. Nc3 {[%clk 0:02:48.7]} 9... a6 {[%clk
0:02:18.5]} 10. Bxd7+ {[%clk 0:02:48.1]} 10... Bxd7 {[%clk 0:02:19.3]} 11. O-O
{[%clk 0:02:30.6]} 11... Nxd4 {[%clk 0:02:12.1]} 12. Nxd4 {[%clk 0:02:30.5]}
12... Qxc5 {[%clk 0:02:10.7]} 13. Nce2 {[%clk 0:02:17.4]} 13... Be7 {[%clk
0:02:08.3]} 14. Kh1 {[%clk 0:02:16.2]} 14... O-O {[%clk 0:02:08.1]} 15. f4
{[%clk 0:02:16.3]} 15... f6 {[%clk 0:02:03.6]} 16. Nf3 {[%clk 0:02:11]} 16...
Rac8 {[%clk 0:01:58.7]} 17. c3 {[%clk 0:02:10.9]} 17... Qe3 {[%clk 0:01:53.5]}
18. Re1 {[%clk 0:01:56.4]} 18... Bb5 {[%clk 0:01:30.1]} 19. Ned4 {[%clk
0:01:52.3]} 19... Qxf4 {[%clk 0:01:22.4]} 20. Nxe6 {[%clk 0:01:51.7]} 20... Qc4
{[%clk 0:00:44.8]} 21. Nxf8 {[%clk 0:01:51.1]} 21... Rxf8 {[%clk 0:00:44.5]} 22.
Qd4 {[%clk 0:01:48.9]} 22... fxe5 {[%clk 0:00:39.6]} 23. Qxc4 {[%clk 0:01:40.6]}
23... Bxc4 {[%clk 0:00:37.7]} 24. Nxe5 {[%clk 0:01:32.6]} 24... Bf6 {[%clk
0:00:29.9]} 25. Nxc4 {[%clk 0:01:31.7]} 25... dxc4 {[%clk 0:00:30.8]} 26. Rad1
{[%clk 0:01:31]} 26... h5 {[%clk 0:00:27.2]} 27. g3 {[%clk 0:01:29.9]} 27... h4
{[%clk 0:00:25.6]} 28. Kg2 {[%clk 0:01:30.3]} 28... hxg3 {[%clk 0:00:24.9]} 29.
hxg3 {[%clk 0:01:30.8]} 29... b5 {[%clk 0:00:23.4]} 30. Rd6 {[%clk 0:01:24.6]}
30... a5 {[%clk 0:00:22.9]} 31. Rd5 {[%clk 0:01:23.6]} 31... b4 {[%clk
0:00:21.5]} 32. Re3 {[%clk 0:01:08.9]} 32... bxc3 {[%clk 0:00:15.1]} 33. bxc3
{[%clk 0:01:08.8]} 33... a4 {[%clk 0:00:15.8]} 34. Ra5 {[%clk 0:01:05.3]} 34...
Rb8 {[%clk 0:00:14.4]} 35. Rxa4 {[%clk 0:01:04.4]} 35... Rb2+ {[%clk 0:00:14.9]}
36. Kf3 {[%clk 0:01:04.7]} 36... Rc2 {[%clk 0:00:13.1]} 37. Rxc4 {[%clk
0:01:04.2]} 37... Rxa2 {[%clk 0:00:13.2]} 38. Rc5 {[%clk 0:01:02.8]} 38... Ra1
{[%clk 0:00:11.2]} 39. g4 {[%clk 0:01:02.7]} 39... Rf1+ {[%clk 0:00:11]} 40. Ke4
{[%clk 0:01:02.7]} 40... Rg1 {[%clk 0:00:10.4]} 41. Kf5 {[%clk 0:00:56]} 41...
Rf1+ {[%clk 0:00:09.6]} 42. Kg6 {[%clk 0:00:53.9]} 42... Rd1 {[%clk 0:00:07.6]}
43. Re8# {[%clk 0:00:50.1]} 1-0

[Event "*** Titled Tuesday Blitz"]
[Site "Chess.com"]
[Date "2020.12.01"]
[Round "1"]
[White "anon102030"]
[Black "barriochess"]
[Result "0-1"]
[WhiteElo "2717"]
[BlackElo "2392"]
[TimeControl "180+1"]
[EndTime "10:07:00 PST"]
[Termination "barriochess won on time"]

1. e4 {[%clk 0:02:59.6]} 1... d6 {[%clk 0:02:58.4]} 2. Nc3 {[%clk 0:02:58.5]}
2... Nf6 {[%clk 0:02:56.8]} 3. g3 {[%clk 0:02:58.8]} 3... g6 {[%clk 0:02:55.5]}
4. Bg2 {[%clk 0:02:59.1]} 4... Bg7 {[%clk 0:02:54.6]} 5. d3 {[%clk 0:02:59.4]}
5... O-O {[%clk 0:02:54.6]} 6. f4 {[%clk 0:02:58.4]} 6... c5 {[%clk 0:02:53.7]}
7. Nf3 {[%clk 0:02:58.6]} 7... Nc6 {[%clk 0:02:53.1]} 8. h3 {[%clk 0:02:57.3]}
8... Rb8 {[%clk 0:02:51.3]} 9. O-O {[%clk 0:02:45.3]} 9... b5 {[%clk 0:02:50]}
10. a3 {[%clk 0:02:44.4]} 10... a5 {[%clk 0:02:47.8]} 11. Be3 {[%clk 0:02:41.1]}
11... b4 {[%clk 0:02:43.3]} 12. axb4 {[%clk 0:02:40.9]} 12... axb4 {[%clk
0:02:44.2]} 13. Na4 {[%clk 0:02:41]} 13... Ne8 {[%clk 0:02:41.2]} 14. Qd2 {[%clk
0:02:29.3]} 14... Nc7 {[%clk 0:02:40.8]} 15. f5 {[%clk 0:02:23]} 15... Nb5
{[%clk 0:02:39]} 16. Bh6 {[%clk 0:02:19.5]} 16... Nbd4 {[%clk 0:02:38.4]} 17.
Bxg7 {[%clk 0:02:18.7]} 17... Kxg7 {[%clk 0:02:39]} 18. b3 {[%clk 0:01:47.3]}
18... Nxf3+ {[%clk 0:02:31.6]} 19. Rxf3 {[%clk 0:01:45.9]} 19... Nd4 {[%clk
0:02:21]} 20. Rf2 {[%clk 0:01:45.9]} 20... gxf5 {[%clk 0:02:18.8]} 21. exf5
{[%clk 0:01:43]} 21... e5 {[%clk 0:02:00.5]} 22. f6+ {[%clk 0:01:22.7]} 22...
Kh8 {[%clk 0:01:59.1]} 23. Re1 {[%clk 0:01:18.7]} 23... Rg8 {[%clk 0:01:47.1]}
24. g4 {[%clk 0:01:03.9]} 24... Bb7 {[%clk 0:01:39.8]} 25. Ref1 {[%clk
0:00:52.1]} 25... Bxg2 {[%clk 0:01:38.7]} 26. Kxg2 {[%clk 0:00:52.8]} 26... Rg6
{[%clk 0:01:35]} 27. Kh1 {[%clk 0:00:39.9]} 27... Qd7 {[%clk 0:01:32.6]} 28. Qe3
{[%clk 0:00:37.4]} 28... Rbg8 {[%clk 0:01:22.7]} 29. Nb2 {[%clk 0:00:28.9]}
29... Ne6 {[%clk 0:01:15.8]} 30. Nc4 {[%clk 0:00:24.4]} 30... Nf4 {[%clk
0:01:16]} 31. Rxf4 {[%clk 0:00:24.1]} 31... exf4 {[%clk 0:01:15.9]} 32. Rxf4
{[%clk 0:00:25]} 32... Re8 {[%clk 0:01:13.3]} 33. Qf3 {[%clk 0:00:18.8]} 33...
d5 {[%clk 0:01:12.4]} 34. Ne3 {[%clk 0:00:17.8]} 34... Re5 {[%clk 0:01:07.1]}
35. d4 {[%clk 0:00:14.5]} 35... cxd4 {[%clk 0:00:59.7]} 36. Rxd4 {[%clk
0:00:15.4]} 36... Qe6 {[%clk 0:00:51.1]} 37. Ng2 {[%clk 0:00:11.3]} 37... Rxf6
{[%clk 0:00:50.4]} 38. Qg3 {[%clk 0:00:08.3]} 38... Re2 {[%clk 0:00:44.8]} 39.
Nf4 {[%clk 0:00:03]} 39... Re1+ {[%clk 0:00:44.9]} 40. Kg2 {[%clk 0:00:03.5]}
40... Qc8 {[%clk 0:00:40.9]} 0-1

[Event "*** Titled Tuesday Blitz"]
[Site "Chess.com"]
[Date "2020.12.01"]
[Round "1"]
[White "GelmanAlexander"]
[Black "norwaytoadog"]
[Result "1-0"]
[WhiteElo "2575"]
[BlackElo "2266"]
[TimeControl "180+1"]
[EndTime "10:07:03 PST"]
[Termination "GelmanAlexander won on time"]

1. d4 {[%clk 0:03:00.9]} 1... d5 {[%clk 0:02:57]} 2. Nc3 {[%clk 0:03:00.8]} 2...
Nf6 {[%clk 0:02:53]} 3. Bf4 {[%clk 0:03:01]} 3... a6 {[%clk 0:02:52.9]} 4. e3
{[%clk 0:03:01.1]} 4... e6 {[%clk 0:02:50.4]} 5. g4 {[%clk 0:03:00.9]} 5... Bb4
{[%clk 0:02:42.8]} 6. Ne2 {[%clk 0:02:34.4]} 6... c5 {[%clk 0:02:35.6]} 7. a3
{[%clk 0:02:24.6]} 7... cxd4 {[%clk 0:02:21.3]} 8. axb4 {[%clk 0:02:03.8]} 8...
dxc3 {[%clk 0:02:20.5]} 9. Nxc3 {[%clk 0:02:04.7]} 9... Nc6 {[%clk 0:02:00.2]}
10. b5 {[%clk 0:02:03]} 10... Ne7 {[%clk 0:01:30]} 11. g5 {[%clk 0:01:48.9]}
11... Ne4 {[%clk 0:00:51.7]} 12. Nxe4 {[%clk 0:01:32.1]} 12... dxe4 {[%clk
0:00:50.7]} 13. Qxd8+ {[%clk 0:01:11.9]} 13... Kxd8 {[%clk 0:00:50.2]} 14. Bg2
{[%clk 0:00:50.5]} 14... Nd5 {[%clk 0:00:22.9]} 15. Bxe4 {[%clk 0:00:28.8]}
15... Nxf4 {[%clk 0:00:22.8]} 16. exf4 {[%clk 0:00:29.6]} 16... Kc7 {[%clk
0:00:22.7]} 17. bxa6 {[%clk 0:00:21.8]} 17... Rxa6 {[%clk 0:00:21.9]} 18. Rxa6
{[%clk 0:00:21.9]} 18... bxa6 {[%clk 0:00:22.2]} 19. Ke2 {[%clk 0:00:22.3]}
19... Bd7 {[%clk 0:00:22.1]} 20. Ke3 {[%clk 0:00:22.3]} 20... h5 {[%clk
0:00:20.8]} 21. Rd1 {[%clk 0:00:21.2]} 21... Rb8 {[%clk 0:00:18.2]} 22. b3
{[%clk 0:00:21.6]} 22... f6 {[%clk 0:00:15.6]} 23. Ra1 {[%clk 0:00:18.8]} 23...
Rb6 {[%clk 0:00:14.6]} 24. Bd3 {[%clk 0:00:18.7]} 24... Bb5 {[%clk 0:00:12.2]}
25. c4 {[%clk 0:00:15.8]} 25... Bc6 {[%clk 0:00:06.3]} 26. Ra3 {[%clk
0:00:16.1]} 26... Kb7 {[%clk 0:00:03.5]} 27. c5 {[%clk 0:00:14.8]} 27... Rb4
{[%clk 0:00:02.3]} 28. Bxa6+ {[%clk 0:00:15.4]} 28... Kc7 {[%clk 0:00:02.2]} 29.
Bc4 {[%clk 0:00:15.6]} 1-0